bitfinex-derivatives/quotes_ETHF0:USTF0_20250824
["timestamp","ask_amount","ask_price","bid_price","bid_amount"]
[1756079011867,0.91548533,4793.8,4793.7,23.2742]
[1756079012468,0.66698533,4793.8,4793.7,23.2742]
[1756079013066,0.66698533,4793.8,4793.7,26.02176098]
[1756079014474,0.3233,4794.7,4793.7,26.02176098]
[1756079014475,0.2485,4794.7,4794.6,0.7064]
[1756079014676,0.2485,4794.7,4794.6,20.0634]
[1756079014874,0.90888545,4794.7,4794.6,20.0634]
[1756079015069,0.66038545,4794.7,4794.6,23.21781536]
[1756079015379,0.66038545,4794.7,4794.6,22.80062536]
[1756079016872,0.2485,4795.1,4795.0,0.3278]
[1756079017070,0.2485,4795.1,4795.0,23.2712]
[1756079017270,0.2485,4795.1,4795.0,26.00749904]
[1756079017271,1.28181317,4795.1,4795.0,26.00749904]
[1756079017476,1.77761317,4795.1,4795.0,25.87119904]
[1756079017676,2.03261317,4795.1,4795.0,22.5648]
[1756079017878,2.03261317,4795.1,4795.0,22.7308]
[1756079018174,2.03261317,4795.1,4795.0,19.357]
[1756079019170,2.03261317,4795.1,4795.0,19.7653]
[1756079019368,1.77761317,4795.1,4795.0,19.9271]
[1756079019577,1.45431317,4795.1,4795.0,19.9271]
[1756079020072,2.03261317,4795.1,4795.0,19.9271]
[1756079020973,0.65811317,4795.1,4795.0,20.0634]
[1756079021179,0.65811317,4795.1,4795.0,20.48055]
[1756079021374,0.65811317,4795.1,4795.0,23.16789083]
[1756079021583,0.65811317,4795.1,4795.0,26.37569083]
[1756079021877,0.2485,4795.5,4795.4,0.74492]
[1756079022081,0.255,4795.9,4795.4,0.74492]
[1756079022082,0.2485,4795.8,4795.7,0.3278]
[1756079022276,0.2485,4795.8,4795.7,20.0564]
[1756079022478,0.88168628,4795.8,4795.7,20.0564]
[1756079022779,0.2485,4795.8,4795.7,20.0564]
[1756079022976,0.3233,4796.5,4796.1,0.3278]
[1756079023183,1.00824736,4796.4,4796.3,0.5701]
[1756079023577,2.00754736,4796.4,4796.3,0.5701]
[1756079023882,2.00754736,4796.4,4796.3,0.166]
[1756079024275,1.42924736,4796.4,4796.2,19.35]
[1756079024476,2.00754736,4796.3,4796.2,19.516]
[1756079024680,2.00754736,4796.3,4796.2,19.7583]
[1756079025680,1.3745,4796.1,4796.0,3.2078]
[1756079025984,1.3745,4796.1,4796.0,22.7208]
[1756079026183,1.3745,4796.1,4796.0,23.1249]
[1756079026878,1.1195,4796.1,4796.0,23.1249]
[1756079027475,0.6237,4796.1,4796.0,23.1249]
[1756079027678,0.2485,4796.4,4796.3,0.3278]
[1756079027874,0.2485,4796.4,4796.3,20.0504]
[1756079028383,0.6237,4796.4,4796.3,19.9141]
[1756079028980,0.2485,4796.4,4796.3,19.9141]
[1756079029184,0.3233,4796.7,4796.3,20.0504]
[1756079029383,0.3233,4796.7,4796.6,3.7779]
[1756079029577,0.3233,4796.7,4796.6,23.1199]
[1756079029578,1.32474829,4796.7,4796.6,23.1199]
[1756079029779,1.49724829,4796.7,4796.6,23.1199]
[1756079029977,1.74574829,4796.7,4796.6,23.1199]
[1756079030585,2.00074829,4796.7,4796.6,23.1199]
[1756079031685,1.74574829,4796.7,4796.6,23.1199]
[1756079031890,0.87474829,4796.7,4796.6,23.2562]
[1756079032085,1.24994829,4796.7,4796.6,23.2562]
[1756079032390,2.00074829,4796.7,4796.6,23.1199]
[1756079032590,5.17394829,4796.7,4796.6,19.339]
[1756079033091,6.00074829,4796.7,4796.6,19.339]
[1756079034690,6.00074829,4796.7,4796.6,19.505]
[1756079034993,2.00074829,4796.7,4796.6,19.9091]
[1756079036394,1.24994829,4796.7,4796.6,0.5701]
[1756079036587,1.24994829,4796.7,4796.6,19.9081]
[1756079037193,0.87474829,4796.7,4796.6,20.0444]
[1756079037585,1.74574829,4796.7,4796.6,19.9081]
[1756079037889,1.98914829,4796.7,4796.6,19.9081]
[1756079038594,1.98914829,4796.7,4796.6,19.504]
[1756079038989,1.98914829,4796.7,4796.6,19.742]
[1756079039191,1.98914829,4796.7,4796.6,19.504]
[1756079039795,0.5484,4796.4,4796.3,19.335]
[1756079039990,1.17464829,4796.4,4796.1,3.2078]
[1756079040185,0.5484,4796.2,4796.1,3.7749]
[1756079040388,1.98764829,4796.2,4796.1,3.2078]
[1756079040992,0.85474829,4796.2,4796.1,3.7749]
[1756079041292,0.62624829,4796.2,4796.1,3.9036]
[1756079041488,1.23924829,4796.2,4796.1,3.9036]
[1756079041695,1.23924829,4796.2,4796.1,3.7749]
[1756079041890,1.74424829,4796.2,4796.1,3.7749]
[1756079042090,1.98764829,4796.2,4796.1,3.7749]
[1756079042294,1.40314829,4796.2,4796.1,3.7749]
[1756079042494,1.74424829,4796.2,4796.1,3.7749]
[1756079042891,1.98764829,4796.2,4796.1,0.4096]
[1756079043092,1.98764829,4796.2,4796.1,0.1716]
[1756079043287,1.98764829,4796.2,4796.1,19.5046]
[1756079044100,1.98764829,4796.2,4796.1,19.9001]
[1756079044296,1.74424829,4796.2,4796.1,19.9001]
[1756079044596,0.62624829,4796.2,4796.1,20.0288]
[1756079046088,3.5923,4796.7,4796.6,0.3291]
[1756079046287,4.42884598,4796.7,4796.6,19.9001]
[1756079046492,4.42884598,4796.7,4796.6,20.0288]
[1756079046799,3.81584598,4796.7,4796.6,20.0288]
[1756079048290,3.2078,4797.2,4796.6,20.0288]
[1756079048496,3.2078,4797.2,4797.1,0.6958]
[1756079048697,3.81420244,4797.2,4797.1,20.0268]
[1756079048897,4.04270244,4797.2,4797.1,20.0268]
[1756079049296,0.60640244,4797.2,4797.1,0.6958]
[1756079049500,1.96780244,4797.2,4797.1,19.8981]
[1756079050300,1.56050244,4797.2,4797.1,19.8981]
[1756079050702,1.72440244,4797.2,4797.1,19.8981]
[1756079050904,1.96780244,4797.2,4797.1,19.8981]
[1756079051104,1.96780244,4797.2,4797.1,19.8971]
[1756079052099,0.83490244,4797.2,4797.1,19.8971]
[1756079052300,0.83490244,4797.2,4797.1,20.0258]
[1756079052699,1.21940244,4797.2,4797.1,19.8971]
[1756079052901,1.56050244,4797.2,4797.1,19.8971]
[1756079053301,0.83490244,4797.2,4797.1,20.0258]
[1756079053501,1.21940244,4797.2,4797.1,19.8971]
[1756079054206,1.56050244,4797.2,4797.1,19.8971]
[1756079054501,0.613,4797.2,4797.1,19.8971]
[1756079054706,0.9541,4797.2,4797.1,19.8971]
[1756079055397,1.118,4797.2,4797.1,19.8971]
[1756079055600,1.118,4797.2,4797.1,0.5671]
[1756079055907,1.3614,4797.2,4797.1,0.5671]
[1756079056106,1.3614,4797.2,4797.1,19.8941]
[1756079056606,0.613,4797.2,4797.1,19.8941]
[1756079056801,0.2285,4797.2,4797.1,20.0228]
[1756079058004,0.23560235,4797.2,4797.1,20.0228]
[1756079059409,0.00710235,4797.2,4797.1,20.0228]
[1756079061311,3.2078,4797.8,4797.7,1.10562]
[1756079061511,0.2285,4797.8,4797.7,20.42962]
[1756079062210,3.5923,4798.3,4798.2,0.5671]
[1756079062510,4.0973,4798.3,4798.2,19.8901]
[1756079062812,4.5692,4798.3,4798.2,19.8901]
[1756079063202,4.3258,4798.3,4798.2,19.8901]
[1756079063914,4.5692,4798.3,4798.2,19.8901]
[1756079064512,3.4363,4798.3,4798.2,20.0117]
[1756079064706,3.8208,4798.3,4798.2,19.8901]
[1756079064905,4.3258,4798.3,4798.2,19.8901]
[1756079065706,4.5692,4798.3,4798.2,0.5671]
[1756079065915,1.3614,4798.3,4798.2,0.5671]
[1756079067111,0.2285,4798.3,4798.2,0.5671]
[1756079067313,1.3614,4798.3,4798.2,0.5671]
[1756079068411,1.118,4798.3,4798.2,0.5671]
[1756079069306,0.9541,4798.3,4798.2,0.5671]
[1756079069710,1.1237,4798.3,4798.2,0.5671]
[1756079069910,1.3589,4798.3,4798.2,0.5671]
[1756079070314,0.5696,4798.3,4798.2,0.5671]
[1756079070514,0.5696,4798.3,4798.2,0.6802]
[1756079070515,0.2285,4798.3,4798.2,0.6802]
[1756079071207,0.2292,4798.6,4798.1,22.5278]
[1756079071415,0.2292,4798.6,4798.5,0.6665]
[1756079071614,0.2292,4798.6,4798.5,19.9835]
[1756079073216,1.3552,4798.6,4798.5,19.8694]
[1756079073407,1.3552,4798.2,4797.9,19.316]
[1756079073613,1.3552,4797.6,4797.5,3.5999]
[1756079073811,1.3552,4797.6,4797.5,23.0762]
[1756079074018,0.6215,4797.6,4797.5,23.0762]
[1756079074318,1.3552,4797.6,4797.5,3.7612]
[1756079074520,1.3552,4797.6,4797.5,23.0752]
[1756079075217,1.3552,4797.6,4797.5,3.2078]
[1756079075419,1.3552,4797.5,4797.4,19.314]
[1756079076418,0.5619,4797.0,4796.9,0.3182]
[1756079076611,1.3552,4797.0,4796.9,19.6322]
[1756079077316,1.3552,4797.0,4796.9,19.8674]
[1756079080815,1.3552,4797.0,4796.9,19.8664]
[1756079082518,1.3552,4797.0,4796.9,0.5534]
[1756079082821,1.3552,4797.0,4796.9,0.3921]
[1756079083215,1.3552,4797.0,4796.9,0.5534]
[1756079084524,0.5619,4796.7,4796.6,19.312]
[1756079084727,0.9502,4796.6,4796.5,19.312]
[1756079085019,1.3552,4796.5,4796.4,19.8654]
[1756079085724,1.3552,4796.5,4796.4,0.5534]
[1756079085917,1.3552,4796.5,4796.4,0.1569]
[1756079086222,1.3552,4796.4,4796.3,19.311]
[1756079086430,0.7933,4796.3,4796.1,0.2352]
[1756079086622,3.2078,4796.4,4795.5,0.5534]
[1756079086623,0.5619,4795.6,4795.5,0.5534]
[1756079086819,1.3552,4795.6,4795.5,19.8644]
[1756079087725,1.12,4795.6,4795.5,19.8644]
[1756079087919,3.2078,4796.4,4795.5,19.9763]
[1756079087920,0.5643,4796.2,4795.5,19.9763]
[1756079088120,0.5581,4796.8,4796.2,0.73524]
[1756079088320,0.2292,4796.8,4796.7,0.6653]
[1756079088821,0.2292,4797.4,4797.3,0.6653]
[1756079089015,0.2292,4797.4,4797.3,19.9753]
[1756079089823,3.2078,4797.5,4797.3,19.9753]
[1756079090019,4.1582,4797.5,4797.4,0.5534]
[1756079090322,3.2078,4797.5,4797.4,0.6653]
[1756079090519,0.2352,4798.1,4797.5,0.3471]
[1756079090520,0.2292,4797.8,4797.5,0.3471]
[1756079090719,0.6215,4797.8,4797.7,0.5534]
[1756079090920,0.9504,4797.8,4797.7,0.5534]
[1756079091121,1.12,4797.8,4797.7,0.5534]
[1756079091825,1.3552,4797.8,4797.7,0.5534]
[1756079092221,1.12,4797.8,4797.7,0.5534]
[1756079092426,0.2292,4797.8,4797.7,0.6653]
[1756079093426,0.16817746,4800.0,4797.4,3.62474]
[1756079093427,0.2292,4798.1,4798.0,0.6653]
[1756079093618,0.2292,4798.1,4798.0,23.1831]
[1756079093816,1.12,4798.1,4798.0,23.0712]
[1756079094018,1.3552,4798.1,4798.0,23.0712]
[1756079094223,1.3552,4798.1,4798.0,3.7612]
[1756079095729,1.3552,4798.1,4798.0,0.5534]
[1756079096123,1.3552,4798.1,4798.0,0.3921]
[1756079096325,0.5619,4797.8,4797.7,0.2352]
[1756079096623,0.6215,4797.0,4796.9,0.3182]
[1756079096827,3.2078,4798.4,4796.9,0.3182]
[1756079096828,3.2078,4798.4,4796.9,19.6252]
[1756079097131,1.3552,4798.0,4797.9,0.3921]
[1756079097329,1.3552,4798.0,4797.9,0.5534]
[1756079097330,0.7911,4798.0,4797.9,0.5534]
[1756079097531,0.7911,4798.0,4797.9,0.6653]
[1756079097532,0.3861,4798.0,4797.9,0.6653]
[1756079098128,0.3861,4798.0,4797.9,19.9713]
[1756079098330,0.2292,4798.0,4797.9,19.9713]
[1756079098529,0.7082,4798.6,4798.5,0.3099]
[1756079098726,0.7082,4798.6,4798.5,0.5595]
[1756079098727,1.0923,4798.6,4798.5,0.5595]
[1756079099231,0.1551,4798.1,4798.0,0.4008]
[1756079099427,1.1642,4798.1,4798.0,0.5595]
[1756079099626,1.3153,4798.1,4798.0,0.5595]
[1756079100722,1.3153,4797.7,4797.2,3.4574]
[1756079100927,19.305,4800.5,4796.9,0.41698]
[1756079100928,1.3153,4797.2,4797.1,0.5595]
[1756079101129,0.5898,4797.2,4797.1,19.8635]
[1756079101335,0.223,4797.2,4797.1,19.9681]
[1756079101636,40.8,4799.6,4797.1,19.9681]
[1756079101637,3.7297,4798.3,4798.2,0.4008]
[1756079101932,0.5219,4798.3,4798.2,0.5595]
[1756079102129,0.9312,4798.3,4798.2,0.5595]
[1756079102634,0.223,4798.3,4798.2,0.6641]
[1756079103224,0.3741,4798.3,4798.2,0.5595]
[1756079103528,0.223,4798.6,4798.5,0.3099]
[1756079103735,0.223,4799.1,4799.0,0.5595]
[1756079103931,0.223,4799.1,4799.0,19.8625]
[1756079104129,3.2078,4799.5,4799.0,19.303]
[1756079104334,4.3001,4799.5,4799.4,0.5595]
[1756079104934,4.5231,4799.5,4799.4,0.5595]
[1756079106425,4.2941,4799.5,4799.4,0.5595]
[1756079106626,3.7976,4799.5,4799.4,0.5595]
[1756079106833,0.5898,4799.5,4799.4,0.5595]
[1756079107127,0.3414,4799.8,4799.4,0.5595]
[1756079107128,0.5644,4799.8,4799.5,0.3542]
[1756079107434,1.3153,4799.8,4799.7,0.5595]
[1756079107835,1.3153,4799.8,4799.7,0.1512]
[1756079108035,0.7449,4798.9,4798.8,3.5177]
[1756079108232,1.3153,4798.9,4798.8,3.359]
[1756079108641,1.3153,4798.9,4798.8,3.7673]
[1756079108834,1.3153,4798.9,4798.4,0.2496]
[1756079109036,0.5219,4798.1,4798.0,0.5595]
[1756079109338,1.3153,4798.1,4798.0,0.1512]
[1756079109533,1.3153,4798.1,4798.0,0.3099]
[1756079109727,1.3153,4798.1,4798.0,0.5595]
[1756079109934,0.223,4798.8,4798.1,0.2496]
[1756079110137,1.3153,4798.8,4798.7,0.1512]
[1756079110340,0.3741,4798.8,4798.7,0.5595]
[1756079110940,0.223,4798.8,4798.7,0.5595]
[1756079111135,0.223,4798.8,4798.7,0.6641]
[1756079112535,0.1551,4798.4,4798.3,0.2496]
[1756079112842,0.1551,4798.4,4797.8,3.2078]
[1756079112843,1.3153,4798.0,4797.9,19.4482]
[1756079113340,1.3153,4798.0,4797.9,19.6978]
[1756079113542,0.223,4798.0,4797.9,19.8565]
[1756079113844,0.223,4798.0,4797.9,19.9611]
[1756079115644,0.3668,4798.4,4798.3,0.5595]
[1756079116145,0.3741,4798.4,4798.3,0.5595]
[1756079116646,1.0863,4798.4,4798.3,0.5595]
[1756079116835,1.3153,4798.4,4798.3,0.5595]
[1756079117440,1.0863,4798.4,4798.3,0.5595]
[1756079117643,1.3153,4798.4,4798.3,0.5595]
[1756079117945,1.3153,4798.4,4798.3,0.4008]
[1756079118240,1.3153,4798.4,4798.0,0.2496]
[1756079118241,0.7934,4798.3,4798.0,0.2496]
[1756079118445,1.3153,4798.1,4798.0,19.6968]
[1756079118944,1.3153,4798.1,4798.0,19.8555]
[1756079119846,1.3153,4798.1,4798.0,19.4472]
[1756079120041,1.3153,4798.1,4797.8,3.2078]
[1756079120238,1.3153,4797.9,4797.8,3.2078]
[1756079120443,1.3153,4797.9,4797.8,3.6086]
[1756079120750,0.5898,4797.9,4797.8,3.7662]
[1756079120950,0.223,4797.9,4797.8,3.7662]
[1756079121244,0.223,4797.9,4797.8,3.8647]
[1756079122444,0.223,4798.2,4798.1,0.5584]
[1756079122736,3.2078,4798.6,4798.5,0.5584]
[1756079122737,3.7976,4798.6,4798.5,0.5584]
[1756079122941,4.2941,4798.6,4798.5,19.8534]
[1756079124947,1.0863,4798.6,4798.5,19.8534]
[1756079125244,0.223,4798.6,4798.5,19.9519]
[1756079125447,0.7082,4799.4,4799.3,0.3088]
[1756079125648,0.7082,4799.4,4799.3,0.5584]
[1756079126150,0.9312,4799.4,4799.3,0.5584]
[1756079126645,0.5898,4799.4,4799.3,0.5584]
[1756079127040,0.9312,4799.4,4799.3,0.5584]
[1756079127248,1.0863,4799.4,4799.3,19.8514]
[1756079127549,0.5898,4799.4,4799.3,19.8514]
[1756079128051,0.3797,4799.9,4799.8,0.5554]
[1756079128252,0.6038,4799.9,4799.8,19.8474]
[1756079129044,0.2313,4799.9,4799.8,19.9437]
[1756079129749,0.2313,4799.9,4799.8,19.8474]
[1756079130549,0.9459,4799.9,4799.8,19.8474]
[1756079130845,1.1093,4799.9,4799.8,19.8474]
[1756079131351,0.6038,4799.9,4799.8,19.8474]
[1756079131548,0.2313,4799.9,4799.8,0.6517]
[1756079131746,0.2313,4799.9,4799.8,19.9417]
[1756079131942,0.3423,4800.2,4799.8,19.9417]
[1756079131943,0.1,4800.2,4800.1,0.5537]
[1756079132253,0.1,4800.2,4800.1,1.06561]
[1756079133045,1.2093,4800.2,4800.1,0.5537]
[1756079133248,1.4516,4800.2,4800.1,19.8427]
[1756079134054,0.1,4800.2,4800.1,19.9379]
[1756079134447,0.3313,4800.2,4800.1,19.9379]
[1756079135054,1.4516,4800.2,4800.1,19.8427]
[1756079135747,0.3313,4800.2,4800.1,19.8427]
[1756079136055,0.7038,4800.2,4800.1,19.8427]
[1756079136350,0.3313,4800.2,4800.1,19.9379]
[1756079136540,0.3313,4800.2,4800.1,19.8407]
[1756079136541,1.4516,4800.2,4800.1,19.8407]
[1756079137344,0.7038,4800.2,4800.1,19.8407]
[1756079137648,0.3313,4800.2,4800.1,19.9359]
[1756079139551,0.1,4800.2,4800.1,19.9359]
[1756079139754,0.4797,4800.2,4800.1,19.8407]
[1756079139947,0.7038,4800.2,4800.1,19.8407]
[1756079140446,1.0459,4800.2,4800.1,19.8377]
[1756079141449,1.4516,4800.2,4800.1,0.5537]
[1756079141753,1.3516,4800.0,4799.9,3.2078]
[1756079142648,1.3516,4799.8,4799.7,0.4014]
[1756079142848,1.3516,4799.8,4799.7,19.4451]
[1756079143052,1.3516,4799.8,4799.7,0.1621]
[1756079143255,1.3516,4799.7,4799.6,19.282]
[1756079143549,0.8157,4800.0,4799.5,19.4441]
[1756079143755,3.2078,4800.1,4799.5,20.25246]
[1756079143756,1.3516,4799.6,4799.5,20.25246]
[1756079144347,1.1093,4799.6,4799.5,20.25246]
[1756079144554,0.2313,4799.6,4799.5,20.34766]
[1756079144948,0.6038,4799.6,4799.5,20.25246]
[1756079146458,1.3516,4799.6,4799.5,19.8357]
[1756079146756,1.1093,4799.6,4799.5,19.8357]
[1756079146958,0.3797,4799.6,4799.5,19.8357]
[1756079147654,0.2313,4799.6,4799.5,19.9309]
[1756079148050,0.6038,4799.6,4799.5,19.8357]
[1756079148255,1.1093,4799.6,4799.5,19.8357]
[1756079148453,0.2313,4799.6,4799.5,19.9309]
[1756079149054,0.3797,4799.6,4799.5,19.8357]
[1756079149355,0.3797,4799.6,4799.5,19.9309]
[1756079149356,0.2313,4799.6,4799.5,19.9309]
[1756079151649,0.3797,4799.9,4799.8,0.4014]
[1756079151854,0.9459,4799.9,4799.8,19.8327]
[1756079152159,1.3516,4799.9,4799.8,19.8327]
[1756079152648,0.3875,4798.7,4798.6,0.2393]
[1756079152852,1.3516,4798.5,4798.4,0.5537]
[1756079153053,1.3516,4798.5,4798.4,0.4014]
[1756079153453,1.3516,4798.5,4798.4,0.5537]
[1756079154058,0.2313,4798.5,4798.4,0.5537]
[1756079154455,1.1093,4798.5,4798.4,0.5537]
[1756079155056,0.7672,4798.5,4798.4,0.5537]
[1756079155455,0.6038,4798.5,4798.4,0.5537]
[1756079156259,0.2313,4798.5,4798.4,0.6489]
[1756079156459,0.6038,4798.5,4798.4,0.5537]
[1756079156661,1.3516,4798.5,4798.4,0.4014]
[1756079156856,1.3516,4798.0,4797.9,0.5537]
[1756079157062,1.3516,4797.9,4797.8,3.2078]
[1756079157362,1.3516,4797.6,4797.5,0.4014]
[1756079157565,1.3516,4797.6,4797.5,0.5537]
[1756079159255,1.3516,4797.6,4797.5,19.8317]
[1756079159856,1.3516,4797.6,4797.4,0.41694]
[1756079160055,1.3382,4797.5,4797.4,0.1549]
[1756079160262,0.5716,4797.5,4797.4,0.5278]
[1756079160560,0.46,4797.9,4797.4,0.3241]
[1756079160758,0.2229,4798.3,4798.2,0.2982]
[1756079160957,0.3487,4799.0,4798.6,0.6223]
[1756079161157,0.2229,4799.0,4798.9,0.71501]
[1756079161360,0.5674,4799.2,4798.9,0.3927]
[1756079161565,0.874,4799.2,4799.1,0.715]
[1756079161865,0.874,4799.2,4799.1,19.8068]
[1756079162059,0.874,4799.2,4799.1,0.5278]
[1756079162262,0.7482,4799.2,4799.1,19.8068]
[1756079162563,0.2229,4799.5,4799.4,0.2982]
[1756079162764,0.2229,4799.5,4799.4,19.5762]
[1756079162962,0.2229,4799.5,4799.4,0.2982]
[1756079163157,0.2229,4799.5,4799.4,19.5762]
[1756079163354,0.2229,4799.5,4799.4,19.8058]
[1756079163755,3.8331,4800.2,4800.1,0.2982]
[1756079164067,3.8331,4800.2,4800.1,0.5278]
[1756079164068,4.4231,4800.2,4800.1,0.5278]
[1756079164261,4.646,4800.2,4800.1,0.5278]
[1756079165561,3.9053,4800.2,4800.1,0.5278]
[1756079165754,3.9053,4800.2,4799.7,0.2296]
[1756079165755,4.646,4800.2,4799.7,0.2296]
[1756079165955,0.5253,4799.7,4799.6,19.277]
[1756079166159,0.5975,4799.7,4799.6,19.8048]
[1756079166354,0.2229,4799.7,4799.6,19.8048]
[1756079166560,0.2229,4800.0,4799.6,23.277]
[1756079166761,1.3382,4800.0,4799.9,0.5278]
[1756079167066,1.3382,4800.0,4799.9,0.1549]
[1756079167671,0.1,4800.2,4800.1,1.03901]
[1756079168266,0.3788,4801.0,4800.9,0.5278]
[1756079168462,0.3788,4801.0,4800.9,19.8983]
[1756079168463,0.2229,4801.0,4800.9,19.8983]
[1756079169466,3.2078,4801.3,4801.2,0.2982]
[1756079169669,0.2229,4801.6,4801.5,0.6223]
[1756079169870,0.2229,4801.6,4801.5,19.8983]
[1756079170663,0.2229,4801.6,4801.5,19.8008]
[1756079170664,0.9462,4801.6,4801.5,19.8008]
[1756079171058,0.2229,4802.1,4801.5,19.8953]
[1756079171264,0.4416,4802.1,4802.0,0.2982]
[1756079171469,0.4416,4802.1,4802.0,19.8008]
[1756079171660,0.5975,4802.1,4802.0,19.8008]
[1756079172059,0.2229,4802.1,4802.0,19.8008]
[1756079172262,0.2229,4802.1,4802.0,0.5278]
[1756079172467,1.0969,4802.1,4802.0,19.8008]
[1756079173471,0.7482,4802.1,4802.0,19.8008]
[1756079173864,0.5975,4802.1,4802.0,19.8008]
[1756079174164,1.3382,4802.1,4802.0,0.5278]
[1756079174364,0.9462,4802.1,4802.0,0.5278]
[1756079174560,0.5975,4802.1,4802.0,0.5278]
[1756079174964,0.9462,4802.1,4802.0,0.5278]
[1756079175972,0.2229,4802.1,4802.0,0.6223]
[1756079180065,0.5975,4802.1,4802.0,0.5278]
[1756079180469,0.2229,4802.1,4802.0,0.6223]
[1756079180870,0.3788,4802.1,4802.0,0.5278]
[1756079181071,0.5975,4802.1,4802.0,0.5278]
[1756079181471,0.2229,4802.1,4802.0,0.5278]
[1756079181774,0.2229,4802.1,4802.0,0.6223]
[1756079182472,4.0818,4802.5,4802.4,0.5278]
[1756079182671,0.3746,4802.8,4802.7,0.5278]
[1756079183072,3.2078,4803.0,4802.9,0.2982]
[1756079183373,0.5674,4803.6,4803.5,0.41642]
[1756079183575,0.874,4803.6,4803.5,0.2982]
[1756079183775,0.3746,4803.6,4803.5,0.5278]
[1756079183964,0.3788,4803.6,4803.5,0.5278]
[1756079184170,0.2229,4803.6,4803.5,0.6223]
[1756079184966,1.3382,4803.6,4803.1,0.2296]
[1756079185172,0.5253,4802.8,4802.7,0.2296]
[1756079185368,1.3382,4802.8,4802.7,19.7898]
[1756079186965,1.3382,4802.8,4802.7,0.5278]
[1756079187368,1.3382,4802.8,4802.7,19.7888]
[1756079187877,1.3382,4802.8,4802.7,0.5278]
[1756079188174,1.3382,4802.8,4802.7,19.7878]
[1756079188567,0.2229,4802.8,4802.7,19.8815]
[1756079189172,0.3671,4802.8,4802.7,19.7878]
[1756079189380,1.3061,4802.8,4802.7,0.5278]
[1756079189578,1.3061,4802.8,4802.7,19.7878]
[1756079190078,0.2239,4803.2,4803.1,0.4721]
[1756079190279,0.3681,4803.6,4803.5,0.1476]
[1756079190483,0.9326,4804.2,4804.1,0.2995]
[1756079190770,0.2239,4804.2,4804.1,19.7903]
[1756079191284,0.2239,4804.2,4804.1,19.884]
[1756079191776,0.2239,4804.6,4804.5,1.04033]
[1756079191973,0.3681,4804.6,4804.5,0.5303]
[1756079192165,1.3071,4804.6,4804.5,0.1519]
[1756079192368,0.7415,4804.6,4804.5,0.5303]
[1756079193278,1.3071,4804.6,4804.5,0.5303]
[1756079193480,0.2239,4804.6,4804.5,0.6244]
[1756079193779,0.2239,4804.6,4804.5,0.5303]
[1756079194378,1.3071,4804.6,4804.5,0.5303]
[1756079194577,1.3071,4804.6,4804.5,0.1519]
[1756079194775,0.3736,4804.5,4804.4,19.8804]
[1756079195076,1.0823,4804.5,4804.4,19.7863]
[1756079195273,0.2239,4804.5,4804.4,19.8804]
[1756079195667,0.2239,4804.5,4804.4,19.7863]
[1756079195668,0.7415,4804.5,4804.4,19.7863]
[1756079195876,0.5176,4805.1,4805.0,0.5303]
[1756079196078,1.0832,4805.1,4805.0,0.5303]
[1756079196379,0.1442,4805.1,4805.0,0.762]
[1756079196572,0.5176,4805.5,4805.4,0.2995]
[1756079196779,1.0832,4805.5,4805.4,0.5303]
[1756079197078,1.0832,4805.9,4805.8,0.5303]
[1756079197868,1.3071,4805.9,4805.4,19.331]
[1756079198176,40.8,4807.2,4805.2,0.5303]
[1756079198177,1.3071,4805.3,4805.2,0.5303]
[1756079198671,1.3071,4804.7,4804.6,3.3597]
[1756079198875,1.3071,4804.7,4804.6,3.2078]
[1756079199077,1.3071,4804.2,4804.1,3.2078]
[1756079199471,0.5647,4804.1,4803.5,19.337]
[1756079199673,0.5918,4803.6,4803.5,20.099]
[1756079200079,1.0823,4804.0,4803.9,0.2995]
[1756079200285,1.0823,4804.0,4803.9,0.762]
[1756079200777,1.0823,4804.0,4803.6,0.4164]
[1756079200778,0.2239,4804.2,4804.1,0.2995]
[1756079200977,1.3071,4804.2,4804.1,0.5303]
[1756079201276,0.9392,4804.1,4804.0,0.3827]
[1756079201476,1.3071,4804.1,4803.6,0.2308]
[1756079201682,0.5176,4803.2,4803.1,22.8383]
[1756079201870,3.2078,4804.2,4803.4,0.5312]
[1756079202074,3.2078,4804.2,4803.1,22.5388]
[1756079202075,3.4315,4804.2,4804.1,0.5312]
[1756079202271,3.2078,4804.2,4804.1,0.762]
[1756079202571,0.4476,4805.0,4804.9,0.762]
[1756079203382,0.2239,4805.3,4804.9,0.71579]
[1756079203682,0.5918,4805.3,4805.2,0.762]
[1756079203881,1.0823,4805.3,4805.2,0.762]
[1756079204078,1.0823,4805.3,4804.7,0.1519]
[1756079204079,0.939,4804.8,4804.7,0.1519]
[1756079204374,1.3071,4804.8,4804.7,0.5303]
[1756079204576,0.3681,4804.8,4804.7,0.762]
[1756079204777,0.2239,4805.1,4804.7,0.2995]
[1756079204969,1.0823,4805.1,4805.0,0.5303]
[1756079205170,1.3071,4805.1,4805.0,0.5303]
[1756079206180,1.0823,4805.1,4805.0,0.762]
[1756079206777,1.3071,4805.1,4805.0,0.762]
[1756079207177,1.3071,4805.1,4805.0,0.5303]
[1756079207778,0.5176,4805.1,4804.4,0.41634]
[1756079208083,1.0823,4804.5,4804.4,1.17834]
[1756079208378,1.3071,4806.0,4805.9,0.5303]
[1756079208581,1.3071,4806.0,4805.9,0.2995]
[1756079208979,1.3071,4806.0,4805.9,0.5303]
[1756079209374,1.3071,4806.0,4805.9,0.1476]
[1756079209580,0.5176,4805.5,4805.4,0.94745]
[1756079209781,1.0823,4805.5,4805.4,0.762]